bitfinex/quotes_ETHUSD_20260202
["timestamp","ask_amount","ask_price","bid_price","bid_amount"]
[1770025658962,14.059495,2314.4,2311.7,9.47612225]
[1770025659140,14.059495,2314.4,2311.8,0.909]
[1770025659470,14.059495,2314.4,2312.0,0.07414677]
[1770025659649,14.059495,2314.4,2312.6,0.07414677]
[1770025659976,1.41497019,2314.3,2312.4,1.08112783]
[1770025660292,1.41497019,2314.3,2312.7,9.47612225]
[1770025660568,0.059495,2314.2,2312.9,0.07414677]
[1770025660759,0.09020693,2314.5,2312.8,0.909]
[1770025660760,14.059495,2314.4,2312.8,0.909]
[1770025661869,14.0,2314.4,2312.3,14.5]
[1770025662046,14.0,2314.4,2311.2,0.001]
[1770025662047,14.0,2314.2,2312.0,0.909]
[1770025662248,14.0,2314.0,2312.0,0.909]
[1770025662448,14.0,2314.0,2312.0,15.409]
[1770025662647,0.0011,2314.2,2313.2,0.07414677]
[1770025662847,0.0011,2314.2,2313.1,0.07414677]
[1770025663048,0.060595,2314.2,2312.4,9.47612225]
[1770025663253,14.060595,2314.2,2311.8,9.47612225]
[1770025663472,14.060595,2314.2,2312.2,0.908]
[1770025663775,14.060595,2314.2,2311.4,2.19544484]
[1770025663776,14.060595,2314.2,2312.1,0.908]
[1770025664072,14.060595,2314.2,2311.4,14.5]
[1770025664273,14.060595,2314.2,2311.5,0.908]
[1770025664472,15.4060595,2314.1,2311.6,11.12507971]
[1770025664661,14.059495,2314.0,2311.7,0.908]
[1770025665466,14.059495,2314.0,2311.6,11.12507971]
[1770025665467,14.059495,2314.0,2311.8,0.908]
[1770025666175,14.059495,2314.0,2311.8,1.08139643]
[1770025666480,14.059495,2314.0,2312.1,9.47612225]
[1770025666648,0.0011,2314.2,2312.7,9.47612225]
[1770025666850,0.0011,2314.2,2312.8,0.908]
[1770025667175,0.0011,2314.2,2312.9,14.5]
[1770025667375,0.060595,2314.2,2312.9,14.5]
[1770025667580,0.060595,2314.2,2313.3,9.47612225]
[1770025667581,0.0011,2314.2,2313.3,9.47612225]
[1770025667781,0.0032,2314.0,2313.4,1.021759]
[1770025667960,0.67754365,2319.1,2314.4,1.30316129]
[1770025668157,13.34841935,2317.5,2314.5,0.908]
[1770025668385,13.34841935,2317.0,2314.0,0.908]
[1770025668585,13.34841935,2315.8,2312.8,0.0008]
[1770025668881,1.951,2317.1,2312.2,0.50665429]
[1770025668882,13.34841935,2314.6,2312.2,0.50665429]
[1770025669184,13.34841935,2314.1,2311.6,0.569]
[1770025669392,13.34841935,2314.7,2312.1,0.4278]
[1770025669676,0.003,2313.4,2312.1,1.08205717]
[1770025669876,0.003,2313.4,2312.1,0.0008]
[1770025670380,13.35141935,2313.4,2312.1,0.0008]
[1770025670571,1.33514194,2313.3,2312.1,0.0008]
[1770025670780,14.68356129,2313.3,2312.1,0.0008]
[1770025670988,1.33514194,2313.3,2312.1,0.0008]
[1770025671299,13.5425228,2318.0,2314.4,0.91495439]
[1770025671499,13.5425228,2318.0,2316.1,0.22568825]
[1770025672064,0.09020693,2319.4,2317.9,9.48124195]
[1770025672358,13.55436571,2320.7,2318.6,9.48124195]
[1770025672672,14.04741983,2323.1,2319.8,9.48124195]
[1770025672857,14.04741983,2323.1,2318.7,0.07414677]
[1770025672858,13.59946918,2322.0,2318.7,0.55466364]
[1770025673060,0.907,2323.0,2318.0,0.94812419]
[1770025673061,13.59946918,2321.1,2318.0,0.94812419]
[1770025673289,13.59946918,2319.9,2316.9,0.82]
[1770025673457,13.59946918,2319.9,2316.5,9.48124195]
[1770025673458,13.59946918,2319.6,2316.5,9.48124195]
[1770025673664,13.59946918,2318.4,2316.1,0.10855902]
[1770025673892,14.50646918,2318.3,2316.1,0.10855902]
[1770025674108,13.59946918,2318.1,2316.1,0.10855902]
[1770025674274,2.35764692,2318.2,2316.1,1.68931376]
[1770025674275,1.45064692,2318.2,2316.1,1.68931376]
[1770025674594,0.0653947,2317.0,2316.1,0.10855902]
[1770025674961,13.56239579,2317.6,2314.1,2.16952383]
[1770025675290,2.16558417,2319.2,2314.1,2.16952383]
[1770025675291,13.56239579,2319.8,2316.7,0.07414677]
[1770025675477,13.56239579,2319.8,2317.1,0.07414677]
[1770025675787,1.35623958,2319.7,2317.9,0.07414677]
[1770025675986,1.35623958,2319.7,2317.3,0.07414677]
[1770025675987,13.56239579,2320.6,2317.1,0.07414677]
[1770025676192,13.56239579,2320.6,2317.4,0.07414677]
[1770025676391,13.56239579,2320.6,2317.2,15.406]
[1770025676392,13.56239579,2320.6,2317.7,1.07863468]
[1770025676567,13.56239579,2320.6,2318.1,0.07414677]
[1770025676889,0.906,2320.9,2318.5,0.07414677]
[1770025677183,0.0011,2320.4,2318.8,0.07414677]
[1770025677386,1.79143981,2323.0,2319.5,0.07414677]
[1770025677387,13.56294579,2322.3,2319.5,0.07414677]
[1770025677589,1.35629458,2322.2,2319.1,0.94825518]
[1770025677889,13.56294579,2321.5,2319.2,14.5]
[1770025678112,23.04418774,2320.5,2317.0,12.66923314]
[1770025678303,13.56294579,2320.4,2317.0,10.56022339]
[1770025678508,13.56294579,2319.8,2317.1,15.55602234]
[1770025678685,13.56294579,2319.2,2316.0,9.48124195]
[1770025678876,13.56294579,2319.8,2316.9,1.07900558]
[1770025679078,13.56294579,2319.7,2317.0,14.57414677]
[1770025679309,13.56294579,2319.7,2315.6,3.00151633]
[1770025679608,13.56294579,2319.5,2316.5,0.07414677]
[1770025679912,13.56294579,2319.1,2316.2,0.07414677]
[1770025680113,13.56294579,2319.1,2316.3,1.07926949]
[1770025680408,13.56294579,2318.6,2316.0,0.906]
[1770025680576,13.56294579,2318.4,2316.0,0.906]
[1770025680776,13.56294579,2318.0,2315.3,1.07975882]
[1770025680979,3.54973453,2319.4,2314.7,14.5]
[1770025680980,13.56294579,2317.4,2314.7,14.5]
[1770025681210,14.46814579,2317.3,2314.7,14.5]
[1770025681411,13.56294579,2317.0,2314.0,1.0803758]
[1770025681713,0.9052,2317.3,2313.3,9.48124195]
[1770025681714,13.56294579,2316.7,2313.3,9.48124195]
[1770025681879,13.56294579,2316.1,2313.4,15.44812419]
[1770025682084,13.56294579,2315.9,2313.5,1.08061378]
[1770025682279,13.56294579,2315.9,2313.5,1.15476055]
[1770025682480,13.56294579,2317.1,2314.4,0.07414677]
[1770025682705,13.56294579,2317.1,2314.7,0.07414677]
[1770025682706,2.30441877,2317.0,2314.7,0.07414677]
[1770025682881,13.56294579,2317.1,2314.5,14.5]
[1770025683479,13.56294579,2317.1,2314.2,0.905]
[1770025683984,23.04418774,2316.6,2314.2,0.905]
[1770025684183,0.906,2316.5,2314.2,1.98528088]
[1770025684420,1.44689458,2316.4,2314.3,0.62626286]
[1770025684726,1.44689458,2316.4,2314.3,0.58317286]
[1770025685200,13.56294579,2317.4,2314.7,0.07414677]
[1770025685401,13.56294579,2317.4,2314.8,0.36669428]
[1770025685601,0.906,2317.5,2314.5,14.5]
[1770025685602,13.56294579,2316.8,2314.5,14.5]
[1770025686307,13.56294579,2316.8,2314.3,0.58317286]
[1770025686613,13.56294579,2316.4,2313.6,0.906]
[1770025686780,13.56294579,2316.2,2313.7,14.86822269]
[1770025687106,13.56294579,2316.2,2313.7,14.5]
[1770025687509,13.56294579,2316.2,2314.5,1.08014141]
[1770025687804,13.56294579,2316.2,2313.9,4.32162976]
[1770025687805,13.56294579,2316.2,2313.9,1.08041518]
[1770025688009,13.56294579,2316.2,2314.0,0.36825752]
[1770025688010,1.35629458,2316.1,2314.0,0.36825752]
[1770025688227,1.35629458,2316.1,2313.9,1.08040528]
[1770025688386,13.56294579,2316.0,2313.8,1.08046541]
[1770025688711,13.56294579,2316.0,2313.8,1.08046384]
[1770025689930,13.56294579,2318.6,2315.6,0.87410841]
[1770025690215,9.86807206,2319.0,2314.9,1.07996025]
[1770025690216,13.45004579,2317.7,2314.9,1.07996025]
[1770025690380,13.45004579,2317.5,2315.0,0.3685427]
[1770025690580,13.45004579,2317.1,2314.8,1.07998346]
[1770025690777,9.48124195,2317.2,2314.5,1.08011804]
[1770025690778,13.45004579,2316.9,2314.5,1.08011804]
[1770025690987,14.88565037,2316.8,2314.6,0.68999647]
[1770025691191,14.88565037,2316.8,2314.8,1.08000501]
[1770025691396,14.88565037,2316.8,2314.7,18.82014434]
[1770025691397,14.88565037,2316.8,2314.7,14.5]
[1770025691598,14.88565037,2316.8,2314.6,1.40131753]
[1770025691924,14.88565037,2316.8,2313.6,13.80347019]
[1770025692107,14.88565037,2316.8,2314.4,1.08017249]
[1770025692306,14.88565037,2316.8,2314.3,4.32095695]
[1770025692486,14.88565037,2316.8,2314.3,1.08024024]
[1770025692992,14.88565037,2316.8,2314.3,15.58024024]
[1770025693202,13.45004579,2316.6,2314.4,1.99013501]
[1770025693403,14.35604579,2316.6,2314.5,0.36988271]
[1770025693710,14.35604579,2316.6,2314.0,0.001]
[1770025694018,13.45004579,2316.4,2314.0,0.001]
[1770025694323,13.45004579,2316.1,2314.0,0.001]
[1770025694498,13.45004579,2315.9,2314.0,0.001]
[1770025694904,13.45004579,2315.9,2313.0,10.5620426]
[1770025694905,13.45004579,2315.7,2312.4,1.02027298]
[1770025695200,13.44954579,2315.9,2313.6,0.07414677]
[1770025695416,13.44954579,2315.9,2313.0,3.29042027]
[1770025695417,13.44954579,2315.9,2313.2,9.48124195]
[1770025695616,13.44954579,2315.9,2313.3,0.37057605]
[1770025695817,13.44954579,2315.9,2313.0,1.15498647]
[1770025696100,13.44954579,2315.9,2313.2,9.48124195]
[1770025696295,1.48856504,2316.7,2313.3,2.51086604]
[1770025696296,15.70050037,2315.8,2313.3,2.51086604]
[1770025696533,0.906,2315.7,2313.6,0.07414677]
[1770025696692,0.906,2315.7,2313.7,0.37080715]
[1770025696897,0.906,2315.7,2313.7,14.5]
[1770025697220,14.35554579,2315.7,2313.3,2.06591212]
[1770025697523,1.57005004,2315.6,2313.4,1.009931]
[1770025697746,15.01959583,2315.6,2313.5,14.8710569]
[1770025697938,15.01959583,2315.6,2313.6,0.3710569]
[1770025698243,15.01959583,2315.6,2313.4,1.71950661]
[1770025698530,15.01959583,2315.6,2313.4,1.71952338]
[1770025698695,13.44954579,2316.6,2314.0,14.57414677]
[1770025698894,13.44954579,2316.6,2314.1,0.37074392]
[1770025699098,0.906,2316.5,2314.2,0.37074392]
[1770025699297,13.44954579,2316.6,2314.4,9.48124195]
[1770025699527,0.906,2317.2,2314.6,0.07414677]
[1770025699705,14.35554579,2317.2,2314.7,0.85239301]
[1770025700024,0.906,2317.1,2314.7,1.02027298]
[1770025700243,13.44954579,2317.0,2314.8,0.85368474]
[1770025700535,0.22587069,2317.8,2315.3,9.48124195]
[1770025700743,13.44954579,2318.6,2315.5,2.25294967]
[1770025701037,13.44954579,2318.2,2315.6,14.5]
[1770025701397,13.44954579,2318.2,2315.4,0.94812419]
[1770025701598,14.35554579,2318.1,2315.4,0.8536534]
[1770025701838,13.44954579,2317.6,2315.3,14.5]
[1770025702329,13.44954579,2317.6,2315.4,1.07972704]
[1770025702929,0.003,2316.9,2315.5,0.85415063]
[1770025703128,0.003,2316.9,2315.3,15.57974023]
[1770025703327,0.003,2316.9,2315.4,1.9899021]
[1770025704104,0.003,2316.9,2315.3,1.07977236]
[1770025704305,0.003,2316.9,2315.1,4.31909471]
[1770025704505,0.003,2316.9,2315.2,15.42955132]
[1770025704722,0.003,2316.9,2315.3,0.85527021]
[1770025704926,0.003,2316.9,2315.2,0.906]
[1770025705112,0.003,2316.9,2315.3,0.855348]
[1770025705416,0.003,2316.9,2315.4,15.35525407]
[1770025705716,0.003,2316.9,2315.5,2.39065204]
[1770025705910,0.003,2316.9,2315.5,1.53552541]
[1770025706129,13.44954579,2317.7,2315.8,0.07414677]
[1770025706329,13.45214579,2318.4,2316.1,1.02027298]
[1770025706529,13.45214579,2318.4,2316.0,1.07944732]
[1770025706729,13.45214579,2318.4,2315.8,1.92627298]
[1770025706730,13.45104579,2318.2,2316.1,0.53972366]
[1770025706931,13.45104579,2318.1,2315.5,1.53552541]
[1770025707335,13.45104579,2317.9,2315.6,0.85935778]
[1770025707635,13.45104579,2317.7,2315.8,1.07950508]
[1770025707813,13.45104579,2317.7,2315.8,1.07953799]
[1770025708150,13.45104579,2317.7,2315.9,1.07948284]
[1770025708437,13.45104579,2317.7,2315.4,15.92366534]
[1770025708438,13.45104579,2317.4,2315.0,1.02027298]
[1770025708759,1.34510458,2317.6,2315.9,1.0794817]
[1770025709048,1.34510458,2317.6,2314.9,1.02027298]
[1770025709049,13.45104579,2317.5,2314.9,1.02027298]
[1770025709226,13.45104579,2316.9,2315.0,0.86202406]
[1770025709427,13.45104579,2316.7,2314.8,1.92527298]
[1770025709746,3.201487,2316.3,2314.6,1.02027298]
[1770025709957,16.42683479,2316.3,2314.6,1.02027298]
[1770025710254,13.45104579,2316.3,2314.7,0.86412519]
[1770025710454,0.905,2316.8,2314.9,1.02027298]
[1770025710632,13.45104579,2316.9,2315.1,1.02027298]
[1770025710936,2.51823923,2317.4,2315.8,1.02027298]
[1770025711138,15.52636579,2317.4,2315.9,0.86412519]
[1770025711314,0.905,2317.7,2315.2,1.02027298]
[1770025711315,13.45104579,2317.2,2315.2,1.02027298]
[1770025711631,13.45104579,2316.8,2315.3,0.24439383]
[1770025711836,14.35604579,2316.7,2314.9,1.02027298]
[1770025712239,14.35604579,2316.7,2315.3,1.02027298]
[1770025712240,13.45104579,2316.7,2315.3,1.02027298]
[1770025712438,13.45104579,2316.7,2315.4,2.25919347]
[1770025712647,2.62626588,2317.1,2315.5,0.86387669]
[1770025712853,13.45104579,2317.0,2315.6,0.86387669]
[1770025713137,13.45104579,2317.0,2315.6,1.02027298]
[1770025713507,13.45104579,2318.6,2316.5,1.02027298]
[1770025713707,13.45214579,2318.4,2316.6,1.88414967]
[1770025713927,13.45214579,2318.4,2315.9,2.72745989]
[1770025713928,13.45104579,2318.0,2315.8,1.02027298]
[1770025714130,6.661706,2318.1,2315.9,0.86345134]
[1770025714131,13.45104579,2317.6,2315.9,0.86345134]
[1770025714328,13.45104579,2317.4,2315.5,2.25605448]
[1770025714635,6.186028,2317.1,2315.6,0.86393064]
[1770025714831,13.45104579,2316.8,2315.5,0.905]
[1770025715019,13.45104579,2316.6,2315.0,1.02027298]
[1770025715218,0.905,2316.8,2314.8,0.29644884]
[1770025715219,13.45104579,2316.5,2314.8,1.31672182]
[1770025715423,18.98943595,2316.4,2314.9,0.86419997]
[1770025715734,1.8989436,2316.3,2315.0,0.86419997]
[1770025715939,15.34998939,2316.3,2314.8,0.29644884]
[1770025716139,15.34998939,2316.3,2315.0,0.129237]
[1770025716744,13.45104579,2317.1,2315.3,0.129237]
[1770025717040,14.35604579,2317.0,2315.3,0.129237]
[1770025717215,14.35604579,2317.0,2315.0,2.10016318]
[1770025717216,13.45104579,2316.8,2315.0,1.14950998]
[1770025717410,0.905,2317.0,2314.8,1.02027298]
[1770025717411,13.45104579,2316.4,2314.8,1.02027298]
[1770025717641,0.905,2316.3,2315.0,0.129237]
[1770025717841,0.905,2316.3,2315.2,0.129237]
[1770025718214,0.905,2316.3,2315.2,0.128437]
[1770025718418,0.905,2316.3,2315.3,0.128437]
[1770025718950,13.74749087,2316.1,2314.6,1.02027298]
[1770025719477,13.74749087,2316.8,2315.3,0.128437]
[1770025719623,16.02723996,2316.7,2315.3,0.128437]
[1770025719822,16.02723996,2316.7,2314.9,1.42366534]
[1770025719823,16.76199587,2316.6,2314.9,1.02027298]
[1770025720042,16.76199587,2316.6,2314.7,1.42366534]
[1770025720043,13.74749087,2316.4,2315.0,0.8652791]
[1770025720342,13.74749087,2316.4,2314.9,0.128437]
[1770025720647,13.74749087,2316.4,2315.1,0.128437]
[1770025720816,1.37474909,2316.3,2314.8,1.02027298]
[1770025721015,1.37474909,2316.3,2314.9,1.8859274]
[1770025721223,1.37474909,2316.3,2315.2,0.128437]
[1770025721815,1.37474909,2316.3,2314.9,1.02027298]
[1770025722162,1.37474909,2316.3,2315.0,0.86588173]
[1770025722325,13.74749087,2316.4,2315.2,1.08235217]
[1770025722524,13.74749087,2317.0,2315.4,1.08235217]
[1770025722731,13.74749087,2317.0,2315.5,0.86588173]
[1770025722926,13.74749087,2317.0,2315.5,1.9482339]
[1770025723127,13.74749087,2317.0,2315.6,1.9482339]
[1770025723344,13.74749087,2317.0,2315.2,1.08235217]
[1770025723643,13.74749087,2317.0,2315.3,0.86559654]
[1770025723848,13.74749087,2317.0,2315.0,1.08235217]
[1770025724045,13.74749087,2317.0,2315.1,0.86576201]
[1770025724248,13.74749087,2316.8,2315.2,0.86576201]
[1770025724415,13.74749087,2316.8,2314.9,1.08235217]
[1770025725017,13.74749087,2316.8,2315.0,0.86608905]
[1770025725251,13.74749087,2316.8,2315.1,0.86608905]
[1770025725444,13.74749087,2316.8,2315.2,0.86608905]
[1770025725749,1.521274,2316.7,2315.3,0.86608905]
[1770025726049,13.74749087,2317.8,2316.1,1.08235217]
[1770025726257,13.74749087,2317.8,2316.3,1.08235217]
[1770025726456,0.905,2318.0,2316.5,1.08235217]
[1770025726616,0.905,2318.0,2316.8,1.08235217]
[1770025726822,13.74859087,2318.4,2316.8,1.41956283]
[1770025727023,14.65359087,2318.4,2316.9,1.94844122]
[1770025727528,14.65359087,2318.4,2317.2,1.08235217]
[1770025727721,14.65359087,2318.4,2317.3,0.86608905]
[1770025727921,0.0011,2318.4,2317.0,1.08235217]
[1770025728123,0.0011,2318.4,2317.5,1.08235217]
[1770025728343,0.0011,2318.4,2317.6,0.86670726]
[1770025728562,0.0011,2318.4,2317.2,1.08235217]
[1770025728723,13.45214579,2318.4,2316.6,1.08235217]
[1770025728923,13.45214579,2318.4,2316.2,1.08235217]
[1770025729148,13.45104579,2317.7,2315.7,1.08235217]
[1770025729351,13.45104579,2317.7,2314.9,2.1580367]
[1770025729352,13.45104579,2317.2,2315.1,1.00128378]
[1770025729532,13.45104579,2317.2,2314.7,1.42366534]
[1770025729834,13.45104579,2317.2,2315.0,1.42366534]
[1770025730150,13.45104579,2317.2,2315.6,1.07962524]
[1770025730151,1.34510458,2317.1,2315.6,1.07962524]
[1770025730350,1.34510458,2317.1,2315.4,1.42366534]
[1770025730520,1.34510458,2317.1,2315.4,2.50337689]
[1770025730721,1.34510458,2317.1,2315.6,1.42366534]
[1770025730929,13.45104579,2317.2,2315.7,1.42366534]
[1770025731327,0.905,2317.4,2315.8,1.42366534]
[1770025732059,13.96179892,2317.4,2315.4,2.50338873]
[1770025732226,13.96179892,2317.4,2315.5,1.42366534]
[1770025732427,1.39617989,2317.3,2315.7,1.07958716]
[1770025732632,13.05679892,2318.1,2315.8,1.42366534]
[1770025732831,13.05679892,2318.1,2315.7,1.07958716]
[1770025732832,0.905,2318.0,2316.1,1.42366534]
[1770025733042,0.905,2318.0,2316.2,1.42366534]
[1770025733256,0.0011,2318.4,2316.5,1.42366534]
[1770025733458,0.0011,2318.4,2316.7,1.42366534]
[1770025733758,0.0011,2318.4,2316.8,1.42366534]
[1770025733932,0.0011,2318.4,2316.7,1.42366534]
[1770025734133,0.0011,2318.4,2317.0,1.42366534]
[1770025734487,0.0011,2318.4,2317.2,2.50253343]
[1770025734661,0.0011,2318.4,2317.3,2.33636934]
[1770025734953,0.0011,2318.4,2317.1,1.07893445]
[1770025735152,0.0011,2318.4,2317.1,1.07892336]
[1770025735369,0.0011,2318.4,2317.0,0.905]
[1770025735370,0.0011,2318.4,2317.0,15.405]
[1770025735534,0.0011,2318.4,2317.0,1.98397406]
[1770025735729,13.05789892,2318.4,2316.6,1.42366534]
[1770025736035,14.45308881,2318.3,2316.1,1.42366534]
[1770025736229,14.45308881,2318.3,2316.0,1.42366534]
[1770025736430,14.45308881,2318.3,2316.2,2.50301945]
[1770025736630,14.45308881,2318.3,2316.3,15.92366534]
[1770025736878,14.45308881,2318.3,2316.3,14.5]
[1770025737033,1.44541888,2318.2,2316.4,1.70030195]
[1770025737230,0.0011,2318.4,2316.5,1.42366534]
[1770025737675,0.00435,2319.1,2316.4,2.04559492]
[1770025737676,0.00435,2319.1,2317.2,1.42366534]
[1770025737970,0.00435,2319.1,2317.7,1.42366534]
[1770025738260,13.05679892,2318.9,2317.0,1.42366534]
[1770025738460,0.905,2319.0,2317.0,1.07898144]
[1770025738664,0.00435,2319.1,2317.0,1.07898144]
[1770025738665,0.00435,2319.1,2317.2,1.42366534]
[1770025738864,0.00435,2319.1,2317.1,15.18185725]
[1770025738865,0.00435,2319.1,2317.3,1.42366534]
[1770025739043,0.00435,2319.1,2317.5,1.42366534]
[1770025739362,0.00435,2319.1,2317.1,2.1199739]
[1770025739590,0.00435,2319.1,2317.7,0.07414677]
[1770025739750,13.05679892,2320.2,2317.7,0.95234662]
[1770025740063,13.05679892,2320.0,2317.7,0.95234662]
[1770025740235,13.05679892,2319.7,2317.1,0.68185725]
[1770025740564,13.05679892,2319.7,2317.0,0.07414677]
[1770025740737,13.05679892,2320.7,2317.9,0.07414677]
[1770025741069,13.05679892,2320.7,2317.6,0.07414677]
[1770025741070,13.05679892,2320.7,2317.8,1.43811665]
[1770025741262,13.05679892,2320.7,2317.7,0.905]
[1770025741459,13.05679892,2320.7,2317.8,0.8612037]
[1770025741660,13.05679892,2320.7,2317.6,1.51146342]
[1770025741661,13.05679892,2320.5,2317.9,0.8612037]
[1770025741832,2.25061184,2320.6,2317.6,2.34231665]
[1770025741833,13.05679892,2320.1,2317.6,0.905]
[1770025742033,13.05679892,2319.9,2316.9,1.07901395]
[1770025742242,13.05679892,2319.9,2317.3,0.86172999]
[1770025742443,13.05679892,2319.9,2317.5,1.07874865]
[1770025742663,13.05679892,2319.9,2317.4,5.17672459]
[1770025742664,13.05679892,2319.7,2317.6,0.62554732]
[1770025742864,13.05679892,2319.7,2317.4,1.07878124]
[1770025743066,13.05679892,2319.7,2317.4,1.07875844]
[1770025743263,1.39617989,2319.8,2316.7,1.07909613]
[1770025743264,13.05679892,2319.5,2316.7,1.07909613]
[1770025743465,13.05679892,2319.5,2316.8,0.86186823]
[1770025743668,13.05679892,2319.3,2316.5,1.07918128]
[1770025743858,13.05679892,2319.3,2316.4,0.905]
[1770025743859,13.05679892,2319.3,2316.9,1.07899366]
[1770025744051,13.05679892,2319.3,2316.5,1.0791785]
[1770025744248,13.05679892,2319.0,2316.4,0.905]
[1770025744566,9.44931943,2319.1,2316.4,0.905]
[1770025744567,13.05679892,2318.8,2316.5,11.3907581]
[1770025744768,1.39617989,2318.7,2316.6,17.0234909]
[1770025744969,1.39617989,2318.7,2316.7,0.86222434]
[1770025745173,14.45297881,2318.7,2316.6,1.66126656]
[1770025745469,14.45297881,2318.7,2316.2,0.905]
[1770025745669,13.05679892,2318.6,2316.0,1.07942382]
[1770025745974,13.05679892,2318.6,2316.4,10.5285717]
[1770025746140,0.905,2318.9,2316.6,0.07414677]
[1770025746349,13.05679892,2319.2,2317.3,1.07884175]
[1770025746648,13.05679892,2319.0,2317.4,0.54683555]
[1770025746849,13.05679892,2319.0,2317.0,1.07895845]
[1770025747053,13.05679892,2319.0,2317.1,15.36195984]
[1770025747251,13.05679892,2319.0,2316.8,0.905]
[1770025747654,13.05679892,2318.5,2315.8,0.001]
[1770025748368,13.05679892,2318.5,2315.9,0.8642022]
[1770025748671,9.44931943,2318.6,2315.8,0.001]
[1770025748672,13.02018302,2318.3,2315.8,0.001]
[1770025748881,2.25061184,2318.4,2315.8,0.001]
[1770025748882,13.02058302,2318.1,2315.8,0.001]
[1770025749043,13.02058302,2318.1,2315.9,0.86365163]
[1770025749248,13.02058302,2318.1,2316.0,0.86365163]
[1770025749505,13.02058302,2318.1,2315.8,0.001]
[1770025749506,13.02058302,2318.0,2315.8,0.001]
[1770025749776,13.02058302,2317.5,2315.8,0.001]
[1770025749948,13.02058302,2317.3,2315.8,0.001]
[1770025750773,13.02008302,2317.0,2315.2,0.001]
[1770025751077,13.02008302,2316.5,2315.2,0.001]
[1770025751275,0.905,2316.4,2315.2,0.001]
[1770025751578,1.3925083,2316.3,2315.2,0.001]
[1770025752154,14.41259132,2316.3,2315.2,0.001]
[1770025752348,13.02008302,2316.3,2315.2,0.001]
[1770025753592,13.02008302,2316.3,2313.8,1.08027367]
[1770025753778,13.02008302,2316.3,2313.9,0.86612527]
[1770025753984,13.02008302,2316.3,2314.0,0.86612527]
[1770025754194,13.02008302,2316.1,2314.1,0.86612527]
[1770025754371,13.02008302,2316.1,2314.2,0.86612527]
[1770025754561,13.02008302,2316.1,2314.2,1.08028596]
[1770025754787,13.02008302,2316.1,2314.0,4.32147077]
[1770025755095,13.02008302,2316.1,2314.2,1.08028505]
[1770025755294,1.44125913,2316.0,2314.1,1.08030381]
[1770025755473,1.44125913,2316.0,2314.2,1.94586549]
[1770025755793,13.92508302,2316.4,2313.6,14.5]
[1770025756013,13.92508302,2316.4,2314.2,1.08028312]
[1770025756171,13.92508302,2316.4,2314.1,1.08033083]
[1770025756374,13.92508302,2316.4,2314.2,2.01944145]
[1770025756686,1.3925083,2316.3,2314.3,1.4990784]
[1770025756881,1.3925083,2316.3,2314.2,1.08028226]
[1770025757181,14.41259132,2316.3,2314.3,1.08023404]
[1770025757376,14.41259132,2316.3,2314.2,0.905]
[1770025757579,14.41259132,2316.3,2314.2,1.98526007]
[1770025757888,14.41259132,2316.3,2314.3,1.08021397]
[1770025758071,13.02008302,2317.5,2315.3,9.44931943]
[1770025758271,13.02008302,2317.5,2315.4,0.86273636]
[1770025758497,13.02008302,2317.3,2315.0,14.5]
[1770025758673,13.02008302,2317.3,2314.6,0.905]
[1770025758674,13.02008302,2317.2,2314.6,0.905]
[1770025758870,13.02008302,2317.2,2314.8,1.0799776]
[1770025759093,13.02008302,2317.0,2314.8,14.5]
[1770025759277,13.02008302,2317.0,2314.5,1.08012482]
[1770025759470,13.02008302,2317.0,2315.0,1.07988648]
[1770025759677,13.02008302,2317.0,2315.2,1.07981037]
[1770025760091,13.02008302,2317.0,2315.1,14.5]
[1770025760302,14.45229215,2316.9,2315.2,1.45]
[1770025760479,14.45229215,2316.9,2314.4,9.45031943]
[1770025760480,14.45229215,2316.9,2314.4,10.53048431]
[1770025760679,13.02008302,2316.3,2314.4,0.001]
[1770025760890,13.02008302,2316.1,2314.4,0.001]
[1770025763669,13.02008302,2316.1,2313.6,1.07935247]
[1770025763875,13.02008302,2315.9,2313.7,0.5401805]
[1770025764477,1.3925083,2316.0,2313.7,0.5401805]
[1770025764478,1.3925083,2316.0,2313.9,3.04026094]
[1770025764676,0.905,2316.2,2313.9,3.04026094]
[1770025765001,0.905,2316.2,2314.0,17.32191647]
[1770025765207,0.905,2316.2,2314.2,1.95983396]
[1770025765515,0.905,2316.2,2314.3,0.86208251]
[1770025765805,0.905,2316.2,2314.3,14.5]
[1770025766009,0.905,2316.2,2314.4,1.6459834]
[1770025766609,0.905,2316.2,2314.0,0.906]
[1770025766782,13.92508302,2316.2,2314.1,1.08032218]
[1770025766980,13.92508302,2316.2,2314.0,0.906]
[1770025767191,13.02008302,2316.0,2313.7,0.5401805]
[1770025767390,13.02008302,2316.0,2313.2,2.18997271]
[1770025767592,13.02008302,2316.0,2313.3,14.5]
[1770025767882,13.02008302,2316.0,2313.4,1.08063627]
[1770025768084,13.02008302,2316.0,2313.3,4.32268982]
[1770025768285,13.02008302,2316.0,2313.6,4.32213462]
[1770025768485,15.26702326,2315.9,2313.8,1.08045174]
[1770025769107,15.26702326,2315.9,2313.9,0.86337127]
[1770025769310,15.26702326,2315.9,2313.8,1.08045174]
[1770025769603,15.26702326,2315.9,2313.9,0.86342845]
[1770025769901,15.26702326,2315.9,2313.8,1.08045174]
[1770025770097,1.52670233,2315.8,2313.9,0.54025001]
[1770025770493,1.52670233,2315.8,2313.9,2.52667673]
[1770025770900,14.54678535,2315.8,2313.9,0.54025001]
[1770025771202,14.54678535,2315.8,2313.6,0.906]
[1770025771377,14.54678535,2315.8,2313.4,14.5]
[1770025771579,14.54678535,2315.8,2313.6,1.08054052]
[1770025771774,14.54678535,2315.8,2313.6,1.08056444]
[1770025771979,14.54678535,2315.8,2313.5,1.08057927]
[1770025772182,13.02008302,2315.6,2313.6,2.42334731]
[1770025772395,13.02008302,2315.6,2313.6,1.55805793]
[1770025772612,13.02008302,2315.6,2313.2,0.001]
[1770025772799,13.02008302,2315.6,2313.5,1.08059803]
[1770025773006,1.45467854,2315.7,2313.6,18.40655563]
[1770025773207,13.02008302,2316.2,2313.9,9.44931943]
[1770025773518,13.02008302,2316.2,2314.0,0.86615961]
[1770025774101,0.906,2316.5,2314.4,9.44931943]
[1770025774317,13.02008302,2316.8,2314.6,1.51420483]
[1770025774525,1.43220913,2316.9,2315.1,1.07986696]
[1770025774821,13.02008302,2318.0,2315.5,1.51420483]
[1770025774979,13.02008302,2318.0,2315.6,16.80621767]
[1770025775184,13.02008302,2318.0,2315.9,9.44931943]
[1770025775425,0.906,2318.3,2316.0,2.30621767]
[1770025775630,0.906,2318.3,2316.2,1.44005806]
[1770025775804,0.906,2318.3,2316.3,16.90696967]
[1770025776011,0.0011,2317.1,2316.4,3.05758673]